{"text_format":"3","workbook":"xlsx","n_sheets":3,"sheets":["Liste d’inventaire","Liste de choix d’inventaire","Recherche bac"],"not_rendered":{"defined_names":8},"read":"whole","date_system":"1900"}

{"sheet":"Liste d’inventaire","index":0,"n_rows":14,"n_cols":11,"rows_kept":14,"merged":[[1,3,1,4],[1,6,1,7]]}
[null,"LISTE D’INVENTAIRE"]
[null,"VALEUR DE STOCK TOTALE :",{"$f":"SUM(ListeD’inventaire[VALEUR DE STOCK])","v":{"v":4649,"d":"4,649.00 €"}},"ARTICLES EN INVENTAIRE :",null,{"$f":"COUNTA(ListeD’inventaire[DESCRIPTION])","v":11},"NOMBRE DE BACS :",null,{"$f":"SUMPRODUCT((1/COUNTIF(ListeD’inventaire[BAC '#],ListeD’inventaire[BAC '#]&\"\")))","v":6}]
[null,"RÉFÉRENCE","DESCRIPTION","BAC #","LIEU","UNITÉ","QTÉ","QTÉ DE RÉAPPROVISIONNEMENT","PRIX","VALEUR DE STOCK","RÉAPPROVISIONNEMENT"]
[null,"SP7875","Article 1","T345",{"$f":"IFERROR(VLOOKUP(ListeD’inventaire[[#This Row],[BAC '#]],RechercheBac[],3,FALSE),\"\")","v":"Rangée 2, emplacement 1"},"Unité",20,10,{"v":30,"d":"30.00 €"},{"$f":"ListeD’inventaire[[#This Row],[QTÉ]]*ListeD’inventaire[[#This Row],[PRIX]]","v":{"v":600,"d":"600.00 €"}},{"$f":"IFERROR(IF(ListeD’inventaire[[#This Row],[QTÉ]]<=ListeD’inventaire[[#This Row],[QTÉ DE RÉAPPROVISIONNEMENT]],1,0),0)","v":0}]
[null,"TR87680","Article 2","T345",{"$f":"IFERROR(VLOOKUP(ListeD’inventaire[[#This Row],[BAC '#]],RechercheBac[],3,FALSE),\"\")","v":"Rangée 2, emplacement 1"},"Unité",30,15,{"v":40,"d":"40.00 €"},{"$f":"ListeD’inventaire[[#This Row],[QTÉ]]*ListeD’inventaire[[#This Row],[PRIX]]","v":{"v":1200,"d":"1,200.00 €"}},{"$f":"IFERROR(IF(ListeD’inventaire[[#This Row],[QTÉ]]<=ListeD’inventaire[[#This Row],[QTÉ DE RÉAPPROVISIONNEMENT]],1,0),0)","v":0}]
[null,"MK676554","Article 3","T5789",{"$f":"IFERROR(VLOOKUP(ListeD’inventaire[[#This Row],[BAC '#]],RechercheBac[],3,FALSE),\"\")","v":"Rangée 1, emplacement 1"},"Unité",10,5,{"v":5,"d":"5.00 €"},{"$f":"ListeD’inventaire[[#This Row],[QTÉ]]*ListeD’inventaire[[#This Row],[PRIX]]","v":{"v":50,"d":"50.00 €"}},{"$f":"IFERROR(IF(ListeD’inventaire[[#This Row],[QTÉ]]<=ListeD’inventaire[[#This Row],[QTÉ DE RÉAPPROVISIONNEMENT]],1,0),0)","v":0}]
[null,"YE98767","Article 4","T9876",{"$f":"IFERROR(VLOOKUP(ListeD’inventaire[[#This Row],[BAC '#]],RechercheBac[],3,FALSE),\"\")","v":"Rangée 3, emplacement 2"},"Boîte (10)",40,10,{"v":15,"d":"15.00 €"},{"$f":"ListeD’inventaire[[#This Row],[QTÉ]]*ListeD’inventaire[[#This Row],[PRIX]]","v":{"v":600,"d":"600.00 €"}},{"$f":"IFERROR(IF(ListeD’inventaire[[#This Row],[QTÉ]]<=ListeD’inventaire[[#This Row],[QTÉ DE RÉAPPROVISIONNEMENT]],1,0),0)","v":0}]
[null,"XR23423","Article 5","T098",{"$f":"IFERROR(VLOOKUP(ListeD’inventaire[[#This Row],[BAC '#]],RechercheBac[],3,FALSE),\"\")","v":"Rangée 3, emplacement 1"},"Unité",12,10,{"v":26,"d":"26.00 €"},{"$f":"ListeD’inventaire[[#This Row],[QTÉ]]*ListeD’inventaire[[#This Row],[PRIX]]","v":{"v":312,"d":"312.00 €"}},{"$f":"IFERROR(IF(ListeD’inventaire[[#This Row],[QTÉ]]<=ListeD’inventaire[[#This Row],[QTÉ DE RÉAPPROVISIONNEMENT]],1,0),0)","v":0}]
[null,"PW98762","Article 6","T345",{"$f":"IFERROR(VLOOKUP(ListeD’inventaire[[#This Row],[BAC '#]],RechercheBac[],3,FALSE),\"\")","v":"Rangée 2, emplacement 1"},"Unité",7,10,{"v":50,"d":"50.00 €"},{"$f":"ListeD’inventaire[[#This Row],[QTÉ]]*ListeD’inventaire[[#This Row],[PRIX]]","v":{"v":350,"d":"350.00 €"}},{"$f":"IFERROR(IF(ListeD’inventaire[[#This Row],[QTÉ]]<=ListeD’inventaire[[#This Row],[QTÉ DE RÉAPPROVISIONNEMENT]],1,0),0)","v":1}]
[null,"BM87684","Article 7","T349",{"$f":"IFERROR(VLOOKUP(ListeD’inventaire[[#This Row],[BAC '#]],RechercheBac[],3,FALSE),\"\")","v":"Rangée 1, emplacement 2"},"Unité",10,5,{"v":10,"d":"10.00 €"},{"$f":"ListeD’inventaire[[#This Row],[QTÉ]]*ListeD’inventaire[[#This Row],[PRIX]]","v":{"v":100,"d":"100.00 €"}},{"$f":"IFERROR(IF(ListeD’inventaire[[#This Row],[QTÉ]]<=ListeD’inventaire[[#This Row],[QTÉ DE RÉAPPROVISIONNEMENT]],1,0),0)","v":0}]
[null,"BH67655","Article 8","T5789",{"$f":"IFERROR(VLOOKUP(ListeD’inventaire[[#This Row],[BAC '#]],RechercheBac[],3,FALSE),\"\")","v":"Rangée 1, emplacement 1"},"Unité",19,10,{"v":3,"d":"3.00 €"},{"$f":"ListeD’inventaire[[#This Row],[QTÉ]]*ListeD’inventaire[[#This Row],[PRIX]]","v":{"v":57,"d":"57.00 €"}},{"$f":"IFERROR(IF(ListeD’inventaire[[#This Row],[QTÉ]]<=ListeD’inventaire[[#This Row],[QTÉ DE RÉAPPROVISIONNEMENT]],1,0),0)","v":0}]
[null,"WT98768","Article 9","T9875",{"$f":"IFERROR(VLOOKUP(ListeD’inventaire[[#This Row],[BAC '#]],RechercheBac[],3,FALSE),\"\")","v":"Rangée 2, emplacement 2"},"Pack (5)",20,30,{"v":14,"d":"14.00 €"},{"$f":"ListeD’inventaire[[#This Row],[QTÉ]]*ListeD’inventaire[[#This Row],[PRIX]]","v":{"v":280,"d":"280.00 €"}},{"$f":"IFERROR(IF(ListeD’inventaire[[#This Row],[QTÉ]]<=ListeD’inventaire[[#This Row],[QTÉ DE RÉAPPROVISIONNEMENT]],1,0),0)","v":1}]
[null,"TS3456","Article 10","T349",{"$f":"IFERROR(VLOOKUP(ListeD’inventaire[[#This Row],[BAC '#]],RechercheBac[],3,FALSE),\"\")","v":"Rangée 1, emplacement 2"},"Unité",15,8,{"v":60,"d":"60.00 €"},{"$f":"ListeD’inventaire[[#This Row],[QTÉ]]*ListeD’inventaire[[#This Row],[PRIX]]","v":{"v":900,"d":"900.00 €"}},{"$f":"IFERROR(IF(ListeD’inventaire[[#This Row],[QTÉ]]<=ListeD’inventaire[[#This Row],[QTÉ DE RÉAPPROVISIONNEMENT]],1,0),0)","v":0}]
[null,"WDG123","Article 11","T349",{"$f":"IFERROR(VLOOKUP(ListeD’inventaire[[#This Row],[BAC '#]],RechercheBac[],3,FALSE),\"\")","v":"Rangée 1, emplacement 2"},"Unité",25,15,{"v":8,"d":"8.00 €"},{"$f":"ListeD’inventaire[[#This Row],[QTÉ]]*ListeD’inventaire[[#This Row],[PRIX]]","v":{"v":200,"d":"200.00 €"}},{"$f":"IFERROR(IF(ListeD’inventaire[[#This Row],[QTÉ]]<=ListeD’inventaire[[#This Row],[QTÉ DE RÉAPPROVISIONNEMENT]],1,0),0)","v":0}]

{"sheet":"Liste de choix d’inventaire","index":1,"n_rows":8,"n_cols":9,"rows_kept":8,"merged":[[0,1,0,7]]}
[null,"LISTE DE CHOIX D’INVENTAIRE"]
[]
[null,"N° DE COMMANDE","RÉFÉRENCE","QTÉ COMMANDÉE","QTÉ DISPONIBLE","DESCRIPTION DE L’ARTICLE","UNITÉ","N° DE BAC","EMPLACEMENT"]
[null,"TP001-1","SP7875",3,{"$f":"IFERROR(VLOOKUP(ListeDeChoixD’inventaire[[#This Row],[RÉFÉRENCE]],ListeD’inventaire[],6,FALSE),\"\")","v":20},{"$f":"IFERROR(VLOOKUP(ListeDeChoixD’inventaire[[#This Row],[RÉFÉRENCE]],ListeD’inventaire[],2,FALSE),\"\")","v":"Article 1"},{"$f":"IFERROR(VLOOKUP(ListeDeChoixD’inventaire[[#This Row],[RÉFÉRENCE]],ListeD’inventaire[],5,FALSE),\"\")","v":"Unité"},{"$f":"IFERROR(VLOOKUP(ListeDeChoixD’inventaire[[#This Row],[RÉFÉRENCE]],ListeD’inventaire[],3,FALSE),\"\")","v":"T345"},{"$f":"IFERROR(VLOOKUP(ListeDeChoixD’inventaire[[#This Row],[RÉFÉRENCE]],ListeD’inventaire[],4,FALSE),\"\")","v":"Rangée 2, emplacement 1"}]
[null,"TP001-1","YE98767",1,{"$f":"IFERROR(VLOOKUP(ListeDeChoixD’inventaire[[#This Row],[RÉFÉRENCE]],ListeD’inventaire[],6,FALSE),\"\")","v":40},{"$f":"IFERROR(VLOOKUP(ListeDeChoixD’inventaire[[#This Row],[RÉFÉRENCE]],ListeD’inventaire[],2,FALSE),\"\")","v":"Article 4"},{"$f":"IFERROR(VLOOKUP(ListeDeChoixD’inventaire[[#This Row],[RÉFÉRENCE]],ListeD’inventaire[],5,FALSE),\"\")","v":"Boîte (10)"},{"$f":"IFERROR(VLOOKUP(ListeDeChoixD’inventaire[[#This Row],[RÉFÉRENCE]],ListeD’inventaire[],3,FALSE),\"\")","v":"T9876"},{"$f":"IFERROR(VLOOKUP(ListeDeChoixD’inventaire[[#This Row],[RÉFÉRENCE]],ListeD’inventaire[],4,FALSE),\"\")","v":"Rangée 3, emplacement 2"}]
[null,"TP001-1","BM87684",2,{"$f":"IFERROR(VLOOKUP(ListeDeChoixD’inventaire[[#This Row],[RÉFÉRENCE]],ListeD’inventaire[],6,FALSE),\"\")","v":10},{"$f":"IFERROR(VLOOKUP(ListeDeChoixD’inventaire[[#This Row],[RÉFÉRENCE]],ListeD’inventaire[],2,FALSE),\"\")","v":"Article 7"},{"$f":"IFERROR(VLOOKUP(ListeDeChoixD’inventaire[[#This Row],[RÉFÉRENCE]],ListeD’inventaire[],5,FALSE),\"\")","v":"Unité"},{"$f":"IFERROR(VLOOKUP(ListeDeChoixD’inventaire[[#This Row],[RÉFÉRENCE]],ListeD’inventaire[],3,FALSE),\"\")","v":"T349"},{"$f":"IFERROR(VLOOKUP(ListeDeChoixD’inventaire[[#This Row],[RÉFÉRENCE]],ListeD’inventaire[],4,FALSE),\"\")","v":"Rangée 1, emplacement 2"}]
[null,"TP001-1","TS3456",6,{"$f":"IFERROR(VLOOKUP(ListeDeChoixD’inventaire[[#This Row],[RÉFÉRENCE]],ListeD’inventaire[],6,FALSE),\"\")","v":15},{"$f":"IFERROR(VLOOKUP(ListeDeChoixD’inventaire[[#This Row],[RÉFÉRENCE]],ListeD’inventaire[],2,FALSE),\"\")","v":"Article 10"},{"$f":"IFERROR(VLOOKUP(ListeDeChoixD’inventaire[[#This Row],[RÉFÉRENCE]],ListeD’inventaire[],5,FALSE),\"\")","v":"Unité"},{"$f":"IFERROR(VLOOKUP(ListeDeChoixD’inventaire[[#This Row],[RÉFÉRENCE]],ListeD’inventaire[],3,FALSE),\"\")","v":"T349"},{"$f":"IFERROR(VLOOKUP(ListeDeChoixD’inventaire[[#This Row],[RÉFÉRENCE]],ListeD’inventaire[],4,FALSE),\"\")","v":"Rangée 1, emplacement 2"}]
[null,"TP001-1","MK676554",3,{"$f":"IFERROR(VLOOKUP(ListeDeChoixD’inventaire[[#This Row],[RÉFÉRENCE]],ListeD’inventaire[],6,FALSE),\"\")","v":10},{"$f":"IFERROR(VLOOKUP(ListeDeChoixD’inventaire[[#This Row],[RÉFÉRENCE]],ListeD’inventaire[],2,FALSE),\"\")","v":"Article 3"},{"$f":"IFERROR(VLOOKUP(ListeDeChoixD’inventaire[[#This Row],[RÉFÉRENCE]],ListeD’inventaire[],5,FALSE),\"\")","v":"Unité"},{"$f":"IFERROR(VLOOKUP(ListeDeChoixD’inventaire[[#This Row],[RÉFÉRENCE]],ListeD’inventaire[],3,FALSE),\"\")","v":"T5789"},{"$f":"IFERROR(VLOOKUP(ListeDeChoixD’inventaire[[#This Row],[RÉFÉRENCE]],ListeD’inventaire[],4,FALSE),\"\")","v":"Rangée 1, emplacement 1"}]

{"sheet":"Recherche bac","index":2,"n_rows":10,"n_cols":7,"rows_kept":10}
[null,"RECHERCHE BAC"]
[]
[null,"BAC #","DESCRIPTION","EMPLACEMENT","LARGEUR","HAUTEUR","LONGUEUR"]
[null,"T345","Grand bac","Rangée 2, emplacement 1",50,10,10]
[null,"T5789","Petit bac","Rangée 1, emplacement 1",25,5,5]
[null,"T9876","Grand bac","Rangée 3, emplacement 2",50,10,10]
[null,"T098","Bac moyen","Rangée 3, emplacement 1",30,7,10]
[null,"T349","Petit bac","Rangée 1, emplacement 2",25,5,5]
[null,"T5789","Grand bac","Rangée 4, emplacement 5",50,10,10]
[null,"T9875","Grand bac","Rangée 2, emplacement 2",50,10,10]